[Event "FIDE World Rapid Chess Championship 2021"]
[White "Vidit, Santosh Gujrathi"]
[Black "Vachier-Lagrave, Maxime"]
[WhiteFideId "5029465"]
[BlackFideId "623539"]
[WhiteElo "2629"]
[BlackElo "2773"]
[Result "1/2-1/2"]
[Round "05"]
[TimeControl "900+10"]
[Date "2021.12.26"]
[WhiteClock "0:07:16"]
[BlackClock "0:13:09"]

1. Nf3 {[%clk 0:07:16]}  d5 {[%clk 0:13:09]} 2. d4 {[%clk 0:07:16]}  Nf6 {[%clk 0:13:09]} 3. c4 {[%clk 0:07:16]}  dxc4 {[%clk 0:13:09]} 4. e3 {[%clk 0:07:16]}  e6 {[%clk 0:13:09]} 5. Bxc4 {[%clk 0:07:16]}  c5 {[%clk 0:13:09]} 6. O-O {[%clk 0:07:16]}  a6 {[%clk 0:13:09]} 7. b3 {[%clk 0:07:16]}  cxd4 {[%clk 0:13:09]} 8. Nxd4 {[%clk 0:07:16]}  Be7 {[%clk 0:13:09]} 9. Bb2 {[%clk 0:07:16]}  O-O {[%clk 0:13:09]} 10. Nd2 {[%clk 0:07:16]}  b5 {[%clk 0:13:09]} 11. Be2 {[%clk 0:07:16]}  Bb7 {[%clk 0:13:09]} 12. a4 {[%clk 0:07:16]}  bxa4 {[%clk 0:13:09]} 13. Rxa4 {[%clk 0:07:16]}  Nbd7 {[%clk 0:13:09]} 14. Ra1 {[%clk 0:07:16]}  Nb6 {[%clk 0:13:09]} 15. Bf3 {[%clk 0:07:16]}  Qd7 {[%clk 0:13:09]} 16. Bxb7 {[%clk 0:07:16]}  Qxb7 {[%clk 0:13:09]} 17. Qf3 {[%clk 0:07:16]}  Qxf3 {[%clk 0:13:09]} 18. N2xf3 {[%clk 0:07:16]}  Rfc8 {[%clk 0:13:09]} 19. Rfc1 {[%clk 0:07:16]}  Rxc1+ {[%clk 0:13:09]} 20. Rxc1 {[%clk 0:07:16]}  Nfd7 {[%clk 0:13:09]} 21. Nc6 {[%clk 0:07:16]}  Bf8 {[%clk 0:13:09]} 22. Na5 {[%clk 0:07:16]}  Bb4 {[%clk 0:13:09]} 23. Nc6 {[%clk 0:07:16]}  Bf8 {[%clk 0:13:09]} 24. Na5 {[%clk 0:07:16]}  Bb4 {[%clk 0:13:09]} 25. Nc6 {[%clk 0:07:16]}  Bf8 {[%clk 0:13:09]} 1/2-1/2


[Site "http://www.Chess.com"]

[Event "FIDE World Rapid Chess Championship 2021"]
[White "Dubov, Daniil"]
[Black "Anton Guijarro, David"]
[WhiteFideId "24126055"]
[BlackFideId "2285525"]
[WhiteElo "2735"]
[BlackElo "2627"]
[Result "0-1"]
[Round "05"]
[TimeControl "900+10"]
[Date "2021.12.26"]
[WhiteClock "0:00:14"]
[BlackClock "0:00:38"]

1. d4 {[%clk 0:00:14]}  d5 {[%clk 0:00:38]} 2. c4 {[%clk 0:00:14]}  e6 {[%clk 0:00:38]} 3. Nf3 {[%clk 0:00:14]}  dxc4 {[%clk 0:00:38]} 4. e3 {[%clk 0:00:14]}  Nf6 {[%clk 0:00:38]} 5. Bxc4 {[%clk 0:00:14]}  c5 {[%clk 0:00:38]} 6. O-O {[%clk 0:00:14]}  cxd4 {[%clk 0:00:38]} 7. exd4 {[%clk 0:00:14]}  Be7 {[%clk 0:00:38]} 8. Nc3 {[%clk 0:00:14]}  O-O {[%clk 0:00:38]} 9. Re1 {[%clk 0:00:14]}  Nc6 {[%clk 0:00:38]} 10. a3 {[%clk 0:00:14]}  b6 {[%clk 0:00:38]} 11. Bg5 {[%clk 0:00:14]}  Bb7 {[%clk 0:00:38]} 12. Qd3 {[%clk 0:00:14]}  h6 {[%clk 0:00:38]} 13. Bf4 {[%clk 0:00:14]}  Bd6 {[%clk 0:00:38]} 14. Bxd6 {[%clk 0:00:14]}  Qxd6 {[%clk 0:00:38]} 15. d5 {[%clk 0:00:14]}  exd5 {[%clk 0:00:38]} 16. Nxd5 {[%clk 0:00:14]}  Nxd5 {[%clk 0:00:38]} 17. Bxd5 {[%clk 0:00:14]}  Rad8 {[%clk 0:00:38]} 18. Rad1 {[%clk 0:00:14]}  Qf6 {[%clk 0:00:38]} 19. Qe4 {[%clk 0:00:14]}  Rd7 {[%clk 0:00:38]} 20. h4 {[%clk 0:00:14]}  g6 {[%clk 0:00:38]} 21. Rc1 {[%clk 0:00:14]}  Re7 {[%clk 0:00:38]} 22. Qa4 {[%clk 0:00:14]}  Rxe1+ {[%clk 0:00:38]} 23. Rxe1 {[%clk 0:00:14]}  Rd8 {[%clk 0:00:38]} 24. Qe4 {[%clk 0:00:14]}  Qd6 {[%clk 0:00:38]} 25. Rd1 {[%clk 0:00:14]}  Kg7 {[%clk 0:00:38]} 26. Rd2 {[%clk 0:00:14]}  Qf6 {[%clk 0:00:38]} 27. g4 {[%clk 0:00:14]}  g5 {[%clk 0:00:38]} 28. hxg5 {[%clk 0:00:14]}  hxg5 {[%clk 0:00:38]} 29. Qe3 {[%clk 0:00:14]}  Kh6 {[%clk 0:00:38]} 30. Bxc6 {[%clk 0:00:14]}  Bxc6 {[%clk 0:00:38]} 31. Nxg5 {[%clk 0:00:14]}  Kg6 {[%clk 0:00:38]} 32. Ne4 {[%clk 0:00:14]}  Qe7 {[%clk 0:00:38]} 33. f4 {[%clk 0:00:14]}  Bxe4 {[%clk 0:00:38]} 34. Rxd8 {[%clk 0:00:14]}  Qxd8 {[%clk 0:00:38]} 35. Qxe4+ {[%clk 0:00:14]}  Kg7 {[%clk 0:00:38]} 36. f5 {[%clk 0:00:14]}  Qd1+ {[%clk 0:00:38]} 37. Kf2 {[%clk 0:00:14]}  Qd2+ {[%clk 0:00:38]} 38. Qe2 {[%clk 0:00:14]}  Qf4+ {[%clk 0:00:38]} 39. Kg2 {[%clk 0:00:14]}  Kh6 {[%clk 0:00:38]} 40. Kh3 {[%clk 0:00:14]}  f6 {[%clk 0:00:38]} 41. Kh4 {[%clk 0:00:14]}  a5 {[%clk 0:00:38]} 42. b3 {[%clk 0:00:14]}  Qc1 {[%clk 0:00:38]} 43. a4 {[%clk 0:00:14]}  Qf4 {[%clk 0:00:38]} 44. Qb2 {[%clk 0:00:14]}  Qg5+ {[%clk 0:00:38]} 45. Kg3 {[%clk 0:00:14]}  Qe3+ {[%clk 0:00:38]} 46. Kg2 {[%clk 0:00:14]}  Kg5 {[%clk 0:00:38]} 47. b4 {[%clk 0:00:14]}  Qe4+ {[%clk 0:00:38]} 48. Kf2 {[%clk 0:00:14]}  Qxb4 {[%clk 0:00:38]} 49. Qe2 {[%clk 0:00:14]}  Qxg4 {[%clk 0:00:38]} 50. Qe8 {[%clk 0:00:14]}  Qxf5+ {[%clk 0:00:38]} 51. Kg3 {[%clk 0:00:14]}  Qe5+ {[%clk 0:00:38]} 0-1


[Site "http://www.Chess.com"]

[Event "FIDE World Rapid Chess Championship 2021"]
[White "Cheparinov, Ivan"]
[Black "Aronian, Levon"]
[WhiteFideId "2905540"]
[BlackFideId "13300474"]
[WhiteElo "2621"]
[BlackElo "2728"]
[Result "1-0"]
[Round "05"]
[TimeControl "900+10"]
[Date "2021.12.26"]
[WhiteClock "0:06:36"]
[BlackClock "0:00:34"]

1. d4 {[%clk 0:06:36]}  d5 {[%clk 0:00:34]} 2. c4 {[%clk 0:06:36]}  dxc4 {[%clk 0:00:34]} 3. Nf3 {[%clk 0:06:36]}  Nf6 {[%clk 0:00:34]} 4. e3 {[%clk 0:06:36]}  e6 {[%clk 0:00:34]} 5. Bxc4 {[%clk 0:06:36]}  a6 {[%clk 0:00:34]} 6. O-O {[%clk 0:06:36]}  c5 {[%clk 0:00:34]} 7. Re1 {[%clk 0:06:36]}  Nc6 {[%clk 0:00:34]} 8. Nc3 {[%clk 0:06:36]}  b5 {[%clk 0:00:34]} 9. Bd3 {[%clk 0:06:36]}  cxd4 {[%clk 0:00:34]} 10. exd4 {[%clk 0:06:36]}  Nb4 {[%clk 0:00:34]} 11. Bf1 {[%clk 0:06:36]}  Be7 {[%clk 0:00:34]} 12. Ne5 {[%clk 0:06:36]}  O-O {[%clk 0:00:34]} 13. a3 {[%clk 0:06:36]}  Nbd5 {[%clk 0:00:34]} 14. Nc6 {[%clk 0:06:36]}  Qd6 {[%clk 0:00:34]} 15. Nxe7+ {[%clk 0:06:36]}  Qxe7 {[%clk 0:00:34]} 16. Bg5 {[%clk 0:06:36]}  Bb7 {[%clk 0:00:34]} 17. Nxd5 {[%clk 0:06:36]}  Bxd5 {[%clk 0:00:34]} 18. Rc1 {[%clk 0:06:36]}  Rac8 {[%clk 0:00:34]} 19. Qd2 {[%clk 0:06:36]}  h6 {[%clk 0:00:34]} 20. Bh4 {[%clk 0:06:36]}  Rfd8 {[%clk 0:00:34]} 21. Rxc8 {[%clk 0:06:36]}  Rxc8 {[%clk 0:00:34]} 22. Rc1 {[%clk 0:06:36]}  Rxc1 {[%clk 0:00:34]} 23. Qxc1 {[%clk 0:06:36]}  Qd8 {[%clk 0:00:34]} 24. Bxf6 {[%clk 0:06:36]}  gxf6 {[%clk 0:00:34]} 25. Qxh6 {[%clk 0:06:36]}  f5 {[%clk 0:00:34]} 26. h4 {[%clk 0:06:36]}  Qd6 {[%clk 0:00:34]} 27. Qg5+ {[%clk 0:06:36]}  Kh7 {[%clk 0:00:34]} 28. h5 {[%clk 0:06:36]}  Qf8 {[%clk 0:00:34]} 29. Bd3 {[%clk 0:06:36]}  Bc4 {[%clk 0:00:34]} 30. Bxc4 {[%clk 0:06:36]}  bxc4 {[%clk 0:00:34]} 31. d5 {[%clk 0:06:36]}  Qb8 {[%clk 0:00:34]} 32. h6 {[%clk 0:06:36]}  Qxb2 {[%clk 0:00:34]} 33. d6 {[%clk 0:06:36]} 1-0


[Site "http://www.Chess.com"]

[Event "FIDE World Rapid Chess Championship 2021"]
[White "Fedoseev, Vladimir"]
[Black "Jumabayev, Rinat"]
[WhiteFideId "24130737"]
[BlackFideId "13702661"]
[WhiteElo "2692"]
[BlackElo "2562"]
[Result "1-0"]
[Round "05"]
[TimeControl "900+10"]
[Date "2021.12.26"]
[WhiteClock "0:00:40"]
[BlackClock "0:00:11"]

1. Nf3 {[%clk 0:00:40]}  Nf6 {[%clk 0:00:11]} 2. c4 {[%clk 0:00:40]}  c6 {[%clk 0:00:11]} 3. g3 {[%clk 0:00:40]}  d5 {[%clk 0:00:11]} 4. Bg2 {[%clk 0:00:40]}  g6 {[%clk 0:00:11]} 5. b3 {[%clk 0:00:40]}  Bg7 {[%clk 0:00:11]} 6. Bb2 {[%clk 0:00:40]}  O-O {[%clk 0:00:11]} 7. O-O {[%clk 0:00:40]}  a5 {[%clk 0:00:11]} 8. Nc3 {[%clk 0:00:40]}  Ne4 {[%clk 0:00:11]} 9. d4 {[%clk 0:00:40]}  Bf5 {[%clk 0:00:11]} 10. Ne5 {[%clk 0:00:40]}  Nxc3 {[%clk 0:00:11]} 11. Bxc3 {[%clk 0:00:40]}  Be6 {[%clk 0:00:11]} 12. cxd5 {[%clk 0:00:40]}  cxd5 {[%clk 0:00:11]} 13. Qd2 {[%clk 0:00:40]}  Nd7 {[%clk 0:00:11]} 14. Nd3 {[%clk 0:00:40]}  Nf6 {[%clk 0:00:11]} 15. f3 {[%clk 0:00:40]}  Bf5 {[%clk 0:00:11]} 16. Ne5 {[%clk 0:00:40]}  Qb6 {[%clk 0:00:11]} 17. Kh1 {[%clk 0:00:40]}  Rfc8 {[%clk 0:00:11]} 18. g4 {[%clk 0:00:40]}  Be6 {[%clk 0:00:11]} 19. e3 {[%clk 0:00:40]}  a4 {[%clk 0:00:11]} 20. Rfb1 {[%clk 0:00:40]}  Qc7 {[%clk 0:00:11]} 21. Bb4 {[%clk 0:00:40]}  axb3 {[%clk 0:00:11]} 22. axb3 {[%clk 0:00:40]}  Rxa1 {[%clk 0:00:11]} 23. Rxa1 {[%clk 0:00:40]}  Ne8 {[%clk 0:00:11]} 24. Nd3 {[%clk 0:00:40]}  Nd6 {[%clk 0:00:11]} 25. Bf1 {[%clk 0:00:40]}  Bd7 {[%clk 0:00:11]} 26. Rc1 {[%clk 0:00:40]}  Bc6 {[%clk 0:00:11]} 27. Ne5 {[%clk 0:00:40]}  Qb6 {[%clk 0:00:11]} 28. Bd3 {[%clk 0:00:40]}  Bf8 {[%clk 0:00:11]} 29. g5 {[%clk 0:00:40]}  Bb5 {[%clk 0:00:11]} 30. Bc5 {[%clk 0:00:40]}  Qa6 {[%clk 0:00:11]} 31. Bb1 {[%clk 0:00:40]}  Ne8 {[%clk 0:00:11]} 32. e4 {[%clk 0:00:40]}  dxe4 {[%clk 0:00:11]} 33. Bxe4 {[%clk 0:00:40]}  Nd6 {[%clk 0:00:11]} 34. Qf4 {[%clk 0:00:40]}  Be8 {[%clk 0:00:11]} 35. Bd3 {[%clk 0:00:40]}  Qa2 {[%clk 0:00:11]} 36. Rb1 {[%clk 0:00:40]}  Rd8 {[%clk 0:00:11]} 37. h4 {[%clk 0:00:40]}  Bg7 {[%clk 0:00:11]} 38. h5 {[%clk 0:00:40]}  gxh5 {[%clk 0:00:11]} 39. Kg1 {[%clk 0:00:40]}  Nc8 {[%clk 0:00:11]} 40. Qf5 {[%clk 0:00:40]}  b6 {[%clk 0:00:11]} 41. Bb4 {[%clk 0:00:40]}  Kf8 {[%clk 0:00:11]} 42. Bc3 {[%clk 0:00:40]}  Nd6 {[%clk 0:00:11]} 43. Qxh7 {[%clk 0:00:40]}  Rc8 {[%clk 0:00:11]} 44. Bb4 {[%clk 0:00:40]}  Bb5 {[%clk 0:00:11]} 45. Bxb5 {[%clk 0:00:40]}  Nxb5 {[%clk 0:00:11]} 46. Re1 {[%clk 0:00:40]}  Nxd4 {[%clk 0:00:11]} 47. Bxe7+ {[%clk 0:00:40]}  Kxe7 {[%clk 0:00:11]} 48. Qxg7 {[%clk 0:00:40]}  Ne2+ {[%clk 0:00:11]} 49. Rxe2 {[%clk 0:00:40]} 1-0


[Site "http://www.Chess.com"]

[Event "FIDE World Rapid Chess Championship 2021"]
[White "Petrosian, Tigran L."]
[Black "Sarana, Alexey"]
[WhiteFideId "13301616"]
[BlackFideId "24133795"]
[WhiteElo "2621"]
[BlackElo "2680"]
[Result "1-0"]
[Round "05"]
[TimeControl "900+10"]
[Date "2021.12.26"]
[WhiteClock "0:00:32"]
[BlackClock "0:04:01"]

1. Nf3 {[%clk 0:00:32]}  d5 {[%clk 0:04:01]} 2. g3 {[%clk 0:00:32]}  g6 {[%clk 0:04:01]} 3. c4 {[%clk 0:00:32]}  c6 {[%clk 0:04:01]} 4. Qa4 {[%clk 0:00:32]}  Nf6 {[%clk 0:04:01]} 5. cxd5 {[%clk 0:00:32]}  Nxd5 {[%clk 0:04:01]} 6. Qd4 {[%clk 0:00:32]}  f6 {[%clk 0:04:01]} 7. Bg2 {[%clk 0:00:32]}  Nd7 {[%clk 0:04:01]} 8. O-O {[%clk 0:00:32]}  e5 {[%clk 0:04:01]} 9. Qh4 {[%clk 0:00:32]}  Bg7 {[%clk 0:04:01]} 10. Nc3 {[%clk 0:00:32]}  Qe7 {[%clk 0:04:01]} 11. d4 {[%clk 0:00:32]}  Nxc3 {[%clk 0:04:01]} 12. bxc3 {[%clk 0:00:32]}  e4 {[%clk 0:04:01]} 13. Nd2 {[%clk 0:00:32]}  f5 {[%clk 0:04:01]} 14. Qxe7+ {[%clk 0:00:32]}  Kxe7 {[%clk 0:04:01]} 15. f3 {[%clk 0:00:32]}  exf3 {[%clk 0:04:01]} 16. Bxf3 {[%clk 0:00:32]}  Nf6 {[%clk 0:04:01]} 17. e4 {[%clk 0:00:32]}  Be6 {[%clk 0:04:01]} 18. Rb1 {[%clk 0:00:32]}  b6 {[%clk 0:04:01]} 19. a4 {[%clk 0:00:32]}  Kd7 {[%clk 0:04:01]} 20. a5 {[%clk 0:00:32]}  b5 {[%clk 0:04:01]} 21. Ba3 {[%clk 0:00:32]}  fxe4 {[%clk 0:04:01]} 22. Nxe4 {[%clk 0:00:32]}  Nxe4 {[%clk 0:04:01]} 23. Bxe4 {[%clk 0:00:32]}  Rhe8 {[%clk 0:04:01]} 24. a6 {[%clk 0:00:32]}  Bc4 {[%clk 0:04:01]} 25. Rfe1 {[%clk 0:00:32]}  Bf8 {[%clk 0:04:01]} 26. Bc5 {[%clk 0:00:32]}  Rxe4 {[%clk 0:04:01]} 27. Rxe4 {[%clk 0:00:32]}  Bd3 {[%clk 0:04:01]} 28. Rbe1 {[%clk 0:00:32]}  Bxe4 {[%clk 0:04:01]} 29. Rxe4 {[%clk 0:00:32]}  Bd6 {[%clk 0:04:01]} 30. Kg2 {[%clk 0:00:32]}  Rf8 {[%clk 0:04:01]} 31. g4 {[%clk 0:00:32]}  g5 {[%clk 0:04:01]} 32. h3 {[%clk 0:00:32]}  h6 {[%clk 0:04:01]} 33. Re2 {[%clk 0:00:32]}  Bxc5 {[%clk 0:04:01]} 34. dxc5 {[%clk 0:00:32]}  Rf4 {[%clk 0:04:01]} 35. Rd2+ {[%clk 0:00:32]}  Kc7 {[%clk 0:04:01]} 36. Rf2 {[%clk 0:00:32]}  Rc4 {[%clk 0:04:01]} 37. Rf7+ {[%clk 0:00:32]}  Kc8 {[%clk 0:04:01]} 38. Rxa7 {[%clk 0:00:32]}  Rxc5 {[%clk 0:04:01]} 39. Rh7 {[%clk 0:00:32]}  Rxc3 {[%clk 0:04:01]} 40. Rh8+ {[%clk 0:00:32]}  Kc7 {[%clk 0:04:01]} 41. a7 {[%clk 0:00:32]} 1-0


[Site "http://www.Chess.com"]

[Event "FIDE World Rapid Chess Championship 2021"]
[White "Harsha, Bharathakoti"]
[Black "Movsesian, Sergei"]
[WhiteFideId "5078776"]
[BlackFideId "310204"]
[WhiteElo "2484"]
[BlackElo "2667"]
[Result "1/2-1/2"]
[Round "05"]
[TimeControl "900+10"]
[Date "2021.12.26"]
[WhiteClock "0:05:04"]
[BlackClock "0:01:44"]

1. d4 {[%clk 0:05:04]}  d5 {[%clk 0:01:44]} 2. Nf3 {[%clk 0:05:04]}  Nf6 {[%clk 0:01:44]} 3. g3 {[%clk 0:05:04]}  c6 {[%clk 0:01:44]} 4. Bg2 {[%clk 0:05:04]}  Bg4 {[%clk 0:01:44]} 5. c4 {[%clk 0:05:04]}  e6 {[%clk 0:01:44]} 6. Qb3 {[%clk 0:05:04]}  Qb6 {[%clk 0:01:44]} 7. Nc3 {[%clk 0:05:04]}  Nbd7 {[%clk 0:01:44]} 8. h3 {[%clk 0:05:04]}  Bh5 {[%clk 0:01:44]} 9. c5 {[%clk 0:05:04]}  Qxb3 {[%clk 0:01:44]} 10. axb3 {[%clk 0:05:04]}  a6 {[%clk 0:01:44]} 11. b4 {[%clk 0:05:04]}  Rc8 {[%clk 0:01:44]} 12. g4 {[%clk 0:05:04]}  Bg6 {[%clk 0:01:44]} 13. Bf4 {[%clk 0:05:04]}  Be7 {[%clk 0:01:44]} 14. Nd2 {[%clk 0:05:04]}  O-O {[%clk 0:01:44]} 15. Nb3 {[%clk 0:05:04]}  Bd8 {[%clk 0:01:44]} 16. Bd6 {[%clk 0:05:04]}  Re8 {[%clk 0:01:44]} 17. f4 {[%clk 0:05:04]}  Bc7 {[%clk 0:01:44]} 18. Bxc7 {[%clk 0:05:04]}  Rxc7 {[%clk 0:01:44]} 19. Kd2 {[%clk 0:05:04]}  Rb8 {[%clk 0:01:44]} 20. Na5 {[%clk 0:05:04]}  h6 {[%clk 0:01:44]} 21. Rhc1 {[%clk 0:05:04]}  Kf8 {[%clk 0:01:44]} 22. Bf3 {[%clk 0:05:04]}  b6 {[%clk 0:01:44]} 23. cxb6 {[%clk 0:05:04]}  Rxb6 {[%clk 0:01:44]} 24. Ra4 {[%clk 0:05:04]}  Rb8 {[%clk 0:01:44]} 25. e3 {[%clk 0:05:04]}  Nb6 {[%clk 0:01:44]} 26. Ra3 {[%clk 0:05:04]}  Nc8 {[%clk 0:01:44]} 27. Na2 {[%clk 0:05:04]}  Nd6 {[%clk 0:01:44]} 28. Be2 {[%clk 0:05:04]}  Nb5 {[%clk 0:01:44]} 29. Bxb5 {[%clk 0:05:04]}  axb5 {[%clk 0:01:44]} 30. Rxc6 {[%clk 0:05:04]}  Rxc6 {[%clk 0:01:44]} 31. Nxc6 {[%clk 0:05:04]}  Rc8 {[%clk 0:01:44]} 32. Ra6 {[%clk 0:05:04]}  Ne4+ {[%clk 0:01:44]} 33. Ke1 {[%clk 0:05:04]}  f6 {[%clk 0:01:44]} 34. Nc3 {[%clk 0:05:04]}  Nxc3 {[%clk 0:01:44]} 35. bxc3 {[%clk 0:05:04]}  Be8 {[%clk 0:01:44]} 36. Na5 {[%clk 0:05:04]}  Rxc3 {[%clk 0:01:44]} 37. Kd2 {[%clk 0:05:04]}  Ra3 {[%clk 0:01:44]} 38. Rxe6 {[%clk 0:05:04]}  Ra2+ {[%clk 0:01:44]} 1/2-1/2


[Site "http://www.Chess.com"]

[Event "FIDE World Rapid Chess Championship 2021"]
[White "Firouzja, Alireza"]
[Black "Nihal, Sarin"]
[WhiteFideId "12573981"]
[BlackFideId "25092340"]
[WhiteElo "2656"]
[BlackElo "2500"]
[Result "1-0"]
[Round "05"]
[TimeControl "900+10"]
[Date "2021.12.26"]
[WhiteClock "0:00:27"]
[BlackClock "0:00:17"]

1. d4 {[%clk 0:00:17]}  d5 {[%clk 0:00:46]} 2. c4 {[%clk 0:00:17]}  e6 {[%clk 0:00:46]} 3. Nf3 {[%clk 0:00:17]}  Nf6 {[%clk 0:00:46]} 4. g3 {[%clk 0:00:17]}  Be7 {[%clk 0:00:46]} 5. Bg2 {[%clk 0:00:17]}  O-O {[%clk 0:00:46]} 6. O-O {[%clk 0:00:17]}  dxc4 {[%clk 0:00:46]} 7. Qc2 {[%clk 0:00:17]}  b5 {[%clk 0:00:46]} 8. a4 {[%clk 0:00:17]}  b4 {[%clk 0:00:46]} 9. Nfd2 {[%clk 0:00:17]}  Nd5 {[%clk 0:00:46]} 10. Nxc4 {[%clk 0:00:17]}  c5 {[%clk 0:00:46]} 11. dxc5 {[%clk 0:00:17]}  Ba6 {[%clk 0:00:46]} 12. Ne3 {[%clk 0:00:17]}  Nd7 {[%clk 0:00:46]} 13. Nxd5 {[%clk 0:00:17]}  exd5 {[%clk 0:00:46]} 14. c6 {[%clk 0:00:17]}  Rc8 {[%clk 0:00:46]} 15. Bf4 {[%clk 0:00:17]}  Nc5 {[%clk 0:00:46]} 16. Rd1 {[%clk 0:00:17]}  d4 {[%clk 0:00:46]} 17. h4 {[%clk 0:00:17]}  h6 {[%clk 0:00:46]} 18. Bf3 {[%clk 0:00:17]}  Re8 {[%clk 0:00:46]} 19. Nd2 {[%clk 0:00:17]}  d3 {[%clk 0:00:46]} 20. exd3 {[%clk 0:00:17]}  Bxd3 {[%clk 0:00:46]} 21. Qc1 {[%clk 0:00:17]}  Bf8 {[%clk 0:00:46]} 22. Re1 {[%clk 0:00:17]}  Qf6 {[%clk 0:00:46]} 23. Rxe8 {[%clk 0:00:17]}  Rxe8 {[%clk 0:00:46]} 24. c7 {[%clk 0:00:17]}  Rc8 {[%clk 0:00:46]} 25. Qe1 {[%clk 0:00:17]}  Bd6 {[%clk 0:00:46]} 26. Bxd6 {[%clk 0:00:17]}  Qxd6 {[%clk 0:00:46]} 27. Rc1 {[%clk 0:00:17]}  Rxc7 {[%clk 0:00:46]} 28. Qe8+ {[%clk 0:00:17]}  Kh7 {[%clk 0:00:46]} 29. Qe3 {[%clk 0:00:17]}  Bf5 {[%clk 0:00:46]} 30. a5 {[%clk 0:00:17]}  Ne6 {[%clk 0:00:46]} 31. Rxc7 {[%clk 0:00:17]}  Qxc7 {[%clk 0:00:46]} 32. Nb3 {[%clk 0:00:17]}  Qc4 {[%clk 0:00:46]} 33. Kg2 {[%clk 0:00:17]}  Kg8 {[%clk 0:00:46]} 34. Nd2 {[%clk 0:00:17]}  Qc5 {[%clk 0:00:46]} 35. Qxc5 {[%clk 0:00:17]}  Nxc5 {[%clk 0:00:46]} 36. Bd5 {[%clk 0:00:17]}  Be6 {[%clk 0:00:46]} 37. Bxe6 {[%clk 0:00:17]}  fxe6 {[%clk 0:00:46]} 38. Kf3 {[%clk 0:00:17]}  Kf7 {[%clk 0:00:46]} 39. Ke3 {[%clk 0:00:17]}  e5 {[%clk 0:00:46]} 40. Ne4 {[%clk 0:00:17]}  Nb3 {[%clk 0:00:46]} 41. a6 {[%clk 0:00:17]}  Ke6 {[%clk 0:00:46]} 42. g4 {[%clk 0:00:17]}  Kd5 {[%clk 0:00:46]} 43. Ng3 {[%clk 0:00:17]}  g6 {[%clk 0:00:46]} 44. h5 {[%clk 0:00:17]}  gxh5 {[%clk 0:00:46]} 45. gxh5 {[%clk 0:00:17]}  Nd4 {[%clk 0:00:46]} 46. f4 {[%clk 0:00:17]}  Nc2+ {[%clk 0:00:46]} 47. Kd2 {[%clk 0:00:17]}  exf4 {[%clk 0:00:46]} 48. Nf5 {[%clk 0:00:17]}  Nd4 {[%clk 0:00:46]} 49. Nxh6 {[%clk 0:00:17]}  Ke4 {[%clk 0:00:46]} 50. Ng4 {[%clk 0:00:17]}  Nf3+ {[%clk 0:00:46]} 51. Ke2 {[%clk 0:00:17]}  Ng5 {[%clk 0:00:46]} 52. Nf2+ {[%clk 0:00:17]}  Kd4 {[%clk 0:00:46]} 53. h6 {[%clk 0:00:17]}  f3+ {[%clk 0:00:46]} 54. Kd2 {[%clk 0:00:17]}  Kc4 {[%clk 0:00:46]} 55. Ke3 {[%clk 0:00:17]}  Kb5 {[%clk 0:00:46]} 56. Nd3 {[%clk 0:00:27]}  b3 {[%clk 0:00:17]} 57. Kf4 {[%clk 0:00:27]}  Nf7 {[%clk 0:00:17]} 58. h7 {[%clk 0:00:27]}  Kxa6 {[%clk 0:00:17]} 59. Kf5 {[%clk 0:00:27]}  Kb5 {[%clk 0:00:17]} 60. Kf6 {[%clk 0:00:27]}  Kc4 {[%clk 0:00:17]} 61. Nf2 {[%clk 0:00:27]}  Nh8 {[%clk 0:00:17]} 62. Kg7 {[%clk 0:00:27]}  Kd4 {[%clk 0:00:17]} 63. Kxh8 {[%clk 0:00:27]}  Ke3 {[%clk 0:00:17]} 64. Nh1 {[%clk 0:00:27]} 1-0


[Site "http://www.Chess.com"]